[Event "Rosh Hashanah Rapid 2022"]
[Site "Ramat Gan"]
[Date "2022.09.25"]
[Round "6.7"]
[White "Veinberg, Nimrod"]
[Black "Sobel, Ido"]
[Result "1-0"]
[ECO "D35"]
[WhiteElo "2400"]
[BlackElo "1873"]
[Annotator "TA"]
[PlyCount "75"]
[EventDate "2022.09.25"]
[EventType "rapid"]
[EventCountry "ISR"]
[SourceTitle "playchess.com"]
[Source "ChessBase"]
[SourceQuality "1"]
[TimeControl "900+5"]

{[%evp 15,75,27,29,26,27,27,30,30,98,29,24,21,21,21,21,20,25,22,30,0,85,82,70,0,64,-1,59,85,160,179,168,166,193,38,253,253,253,253,253,253,253,253,253,253,253,231,962,962,962,962,892,872,1185,1180,1163,1141,1100,925,925,916,1052,1017]} 1. d4 {[%emt 0:00:01]} d5 {[%emt 0:00:01]} 2. c4 {[%emt 0:00:02]} e6 {[%emt 0:00:01]} 3. Nc3 {[%emt 0:00:03]} Nf6 {[%emt 0:00:01]} 4. cxd5 {[%emt 0:00:01]} exd5 {[%emt 0:00:01]} 5. Bg5 {[%emt 0:00:03]} Be7 {[%emt 0:00:02]} 6. e3 {[%emt 0:00:02]} O-O {[%emt 0:00:05]} 7. Bd3 {[%emt 0:00:02]} h6 {[%emt 0:00:01]} 8. Bf4 {[%emt 0:00:10]} c6 {[%emt 0:00:25] 8...c5 might become the main line.} 9. h3 {[%emt 0:00:33] D35: Queen's Gambit Declined: Exchange Variation.} Bd6 {[%emt 0:00:07]} 10. Nge2 {[%emt 0:00:06]} Re8 {[%emt 0:00:17]} 11. Qc2 {[%emt 0:00:03] White has an edge.} Na6 {[%emt 0:00:35] [#]} (11... b6 $11 {remains equal.}) 12. a3 $146 {[%emt 0:00:07]} (12. Bxa6 $16 {Threatens to win with Bd3.} bxa6 13. O-O) ({Predecessor:} 12. Bxa6 bxa6 13. O-O Rb8 14. Rfc1 Bxf4 15. Nxf4 Bd7 16. b3 Qc8 17. Qe2 Qb7 18. Nd3 {1-0 (49) Ballai,Z (2303)-Herczeg,T (2150) Hungary 2010}) 12... Nc7 $11 {[%emt 0:00:03]} 13. O-O {[%emt 0:00:07]} Nh5 {[%emt 0:00:35]} 14. Bxd6 {[%emt 0:00:10]} Qxd6 {[%emt 0:00:02]} 15. b4 {[%emt 0:00:10]} a6 {[%emt 0:00:07]} 16. Na4 {[%emt 0:00:12]} Ne6 {[%emt 0:00:49]} 17. f4 {[%emt 0:01:11]} g5 {[%emt 0:02:10] [#]} (17... Qc7 $11) 18. Bg6 $1 $36 {[%emt 0:03:23][%mdl 2048] White is really pushing.} Nf6 {[%emt 0:01:36]} 19. Bd3 {[%emt 0:00:13]} Nh5 {[%emt 0:00:11]} 20. Nc5 {[%emt 0:02:10]} (20. Rf3 $14) 20... gxf4 {[%emt 0:01:06]} (20... a5 $11) 21. Nxe6 $14 {[%emt 0:00:05]} Rxe6 {[%emt 0:00:06]} ({Black should play} 21... Qxe6 22. Rf3 Kh8) 22. Nxf4 $16 {[%emt 0:01:05]} Nxf4 {[%emt 0:00:15]} 23. Rxf4 {[%emt 0:00:41]} Rxe3 {[%emt 0:00:28] [#]} 24. Bh7+ $2 {[%emt 0:00:24]} (24. Raf1 $1 $18 Re7 25. Bh7+ Kg7 26. Qf2) 24... Kg7 {[%emt 0:00:52] [#] Black cannot hold the game after this.} ({Better is} 24... Kh8 $1 $14 25. Raf1 (25. Rxf7 Rg3 $11) 25... Be6) 25. Qf2 $1 $18 {[%emt 0:00:12][%csl LRe3,LRf7]} ({Don't take} 25. Raf1 $6 Re7 $16) 25... Re7 {[%emt 0:00:12]} 26. Qg3+ {[%emt 0:01:05]} Kxh7 {[%emt 0:00:34] [#]} 27. Rxf7+ {[%emt 0:00:02][%mdl 576] Discovered Attack} Rxf7 {[%emt 0:00:01]} 28. Qxd6 {[%emt 0:00:01] aiming for g4.} Bf5 {[%emt 0:00:03]} 29. Rf1 {[%emt 0:00:02]} Raf8 {[%emt 0:00:08]} 30. g4 {[%emt 0:00:49]} Be4 {[%emt 0:00:26]} (30... Bd3 31. Rxf7+ Rxf7) 31. Qxf8 {[%emt 0:00:02] Active counter play! White is clearly winning.} Rxf8 {[%emt 0:00:08]} 32. Rxf8 {[%emt 0:00:02][%mdl 4096] Endgame KR-KB} Kg6 {[%emt 0:00:32]} 33. Rb8 {[%emt 0:00:18]} Kg5 {[%emt 0:00:02]} 34. Rxb7 {[%emt 0:00:05]} Bd3 {[%emt 0:00:09]} 35. Rc7 {[%emt 0:00:27]} Bb5 {[%emt 0:00:03]} 36. Rf7 {[%emt 0:00:02]} Bd3 {[%emt 0:00:08]} 37. Kg2 {[%emt 0:00:25]} Kh4 {[%emt 0:00:43]} 38. Rf6 {[%emt 0:00:07][%csl LRc6,LRh6] Weighted Error Value: White=0.26 (precise) /Black=0.34} 1-0

[Event "Rosh Hashanah Rapid 2022"]
[Site "Ramat Gan"]
[Date "2022.09.25"]
[Round "6.8"]
[White "Uritsky, Yonathan"]
[Black "Zak, Uriel"]
[Result "1-0"]
[ECO "C28"]
[WhiteElo "2236"]
[BlackElo "2262"]
[Annotator "TA"]
[PlyCount "99"]
[EventDate "2022.09.25"]
[EventType "rapid"]
[EventCountry "ISR"]
[SourceTitle "playchess.com"]
[Source "ChessBase"]
[SourceQuality "1"]
[TimeControl "900+5"]

{[%evp 17,99,0,7,0,-4,-12,8,-1,36,0,16,16,39,27,40,43,41,35,45,5,14,-17,-8,-4,-10,-86,0,0,-8,-12,-7,-39,-16,-37,0,-17,-2,-7,0,-34,0,-30,0,0,0,-83,-31,-41,-42,-64,-39,-68,0,0,0,-45,-53,-95,-74,-185,0,-92,0,-165,0,0,0,0,0,0,52,41,358,296,483,484,594,495,893,472,459,445,29986,29987]} 1. e4 {[%emt 0:00:01]} e5 {[%emt 0:00:02]} 2. Nc3 {[%emt 0:00:01]} Nf6 {[%emt 0:00:04]} 3. Bc4 {[%emt 0:00:02]} Nc6 {[%emt 0:00:08]} 4. d3 {[%emt 0:00:01]} Bb4 {[%emt 0:00:02]} 5. Nge2 {[%emt 0:00:03]} d5 {[%emt 0:00:02]} 6. exd5 {[%emt 0:00:01]} Nxd5 {[%emt 0:00:03]} 7. O-O {[%emt 0:00:03]} Be6 {[%emt 0:00:02]} 8. a3 {[%emt 0:00:27]} Bxc3 {[%emt 0:00:37]} 9. bxc3 {[%emt 0:00:02]} O-O {[%emt 0:00:03]} 10. Rb1 {[%emt 0:00:07] C28: Vienna Game: 2...Nf6 3 Bc4 Nc6.} b6 {[%emt 0:00:20] [#]} 11. Bd2 $146 {[%emt 0:00:27]} ({Predecessor:} 11. Bb3 Na5 12. c4 Ne7 13. Ng3 Ng6 14. Ne4 f6 15. Kh1 Qd7 16. Bd2 Nb7 17. Be3 Nd6 {½-½ (47) Lopez Gallego,M (1940)-Garcia Fernandez,J (2040) Terrassa 1996}) 11... Nce7 {[%emt 0:00:29]} 12. Bb3 {[%emt 0:00:15] The position is equal.} c5 {[%emt 0:00:05]} 13. d4 {[%emt 0:00:08]} (13. c4 $5 {[%cal Rc4d5]} Nf6 14. Nc3 $11) 13... exd4 {[%emt 0:03:45]} 14. cxd4 {[%emt 0:00:02]} Ng6 {[%emt 0:00:34]} 15. c4 {[%emt 0:00:22]} Nf6 {[%emt 0:00:01]} 16. d5 {[%emt 0:00:03]} Bf5 {[%emt 0:00:03]} 17. Rc1 {[%emt 0:00:01]} Ne4 {[%emt 0:00:12]} 18. Be3 {[%emt 0:00:32]} Re8 {[%emt 0:00:02]} 19. Bc2 {[%emt 0:00:31]} Nd6 {[%emt 0:00:04] With the idea ...Bxc2.} 20. Bxf5 {[%emt 0:00:31]} Nxf5 {[%emt 0:00:02] Pair of Knights!} 21. Qd3 {[%emt 0:00:01]} (21. Rc3 $11) 21... Nxe3 {[%emt 0:00:12]} (21... Nd6 $17) 22. fxe3 $11 {[%emt 0:00:02]} Qe7 {[%emt 0:00:25]} 23. Rc3 {[%emt 0:00:11]} Ne5 {[%emt 0:00:02]} 24. Qf5 {[%emt 0:00:26]} g6 {[%emt 0:00:10]} 25. Qf4 {[%emt 0:00:03]} Nd7 {[%emt 0:01:07]} 26. e4 {[%emt 0:00:19]} f6 {[%emt 0:00:03]} 27. Ng3 {[%emt 0:00:10]} Qe5 {[%emt 0:00:17]} 28. Rc2 {[%emt 0:01:17]} a6 {[%emt 0:00:16]} 29. Qg4 {[%emt 0:00:21]} Qd4+ {[%emt 0:00:23]} 30. Kh1 {[%emt 0:00:32]} Ne5 {[%emt 0:00:08]} 31. Qh4 {[%emt 0:00:24]} (31. Qe2 $11 Nd7 32. Rcc1) 31... Rf8 $36 {[%emt 0:00:17][%mdl 2048] White is under pressure.} (31... Nxc4 $17 {...Ne3 is the strong threat.} 32. Rcc1 (32. Qxf6 Qxf6 33. Rxf6 Nxa3 $17) 32... Nd6 33. Qxf6 Qxf6 34. Rxf6 Rad8) 32. Rcf2 $15 {[%emt 0:00:17]} Nxc4 {[%emt 0:03:54]} 33. Rxf6 {[%emt 0:00:07]} Rxf6 {[%emt 0:00:19]} 34. Rxf6 {[%emt 0:00:53]} ({Much weaker is} 34. Qxf6 Qxf6 35. Rxf6 b5 $17) 34... Rf8 {[%emt 0:00:11]} (34... Ne3 $15 35. Ne2 Qd1+ 36. Ng1 Qg4 37. Qxg4 Nxg4) 35. Rxf8+ $11 {[%emt 0:00:33]} Kxf8 {[%emt 0:00:01][%mdl 4096] Endgame KQN-KQN} 36. h3 {[%emt 0:00:20]} Qe5 {[%emt 0:00:35]} 37. a4 {[%emt 0:00:33]} ({Much worse is} 37. Qd8+ Kg7 38. Qd7+ Kh6 $17) 37... Kg7 {[%emt 0:00:06] Threatens to win with ...Nd6.} 38. Ne2 {[%emt 0:00:36]} (38. Nf1 $17) 38... Qa1+ $2 {[%emt 0:00:10]} (38... Nd6 $19 39. Ng1 Nxe4) 39. Kh2 {[%emt 0:00:01] [#]} (39. Ng1 $1 $11 {remains equal.} Qf6 40. Qg3) 39... Qe5+ {[%emt 0:00:04]} (39... Qf6 $1 $17 {[%cal Rf6h4]} 40. Qg3 Qe5) 40. Kh1 $19 {[%emt 0:01:34]} Qa1+ $2 {[%emt 0:00:32]} (40... Nd6 $19 41. Ng1 Nxe4) 41. Ng1 {[%emt 0:00:16] Strongly threatening Qe7+.} Qf6 {[%emt 0:00:10] Inhibits Qe7+.} 42. Qg4 {[%emt 0:00:14]} Ne5 {[%emt 0:02:33]} 43. Qc8 {[%emt 0:00:10]} a5 {[%emt 0:00:00]} (43... Nd3 $11 44. Nf3 Nf2+ 45. Kg1 Nxe4) 44. Qc7+ $14 {[%emt 0:00:02]} Kh6 $2 {[%emt 0:00:00][%mdl 8192] [#] This costs Black the game.} ({Black should play} 44... Nf7 $1 $14) 45. d6 $1 $18 {[%emt 0:00:06] aiming for d7.} c4 $2 {[%emt 0:00:00]} (45... Nf7 {was called for.}) 46. d7 {[%emt 0:00:19]} Nf7 {[%emt 0:00:00] Prevents d8Q.} 47. Qxc4 {[%emt 0:00:05]} Nd8 {[%emt 0:00:00]} (47... Kg7 $142 48. Nf3 Nd8) 48. Qc7 {[%emt 0:00:05]} Qe7 {[%emt 0:00:00]} 49. Nf3 {[%emt 0:00:20]} Nf7 {[%emt 0:00:00]} (49... Kg7 $18 50. e5 h6) 50. d8=Q {[%emt 0:00:15] Weighted Error Value: White=0.36/Black=0.64} 1-0

[Event "Rosh Hashanah Rapid 2022"]
[Site "Ramat Gan"]
[Date "2022.09.25"]
[Round "6.9"]
[White "Noy, Eyal"]
[Black "Kaganskiy, Gleb"]
[Result "1-0"]
[ECO "B10"]
[WhiteElo "2067"]
[BlackElo "2225"]
[Annotator "TA"]
[PlyCount "138"]
[EventDate "2022.09.25"]
[EventType "rapid"]
[EventCountry "ISR"]
[SourceTitle "playchess.com"]
[Source "ChessBase"]
[SourceQuality "1"]
[TimeControl "900+5"]

{[%evp 17,138,-24,-16,-19,-26,-20,-8,-10,-14,-20,-6,-20,-8,-54,-68,-109,-103,-150,-156,-152,-163,-159,-144,-139,-139,-122,-99,-158,-124,-143,-139,-141,-110,-140,-73,-78,-81,-81,-86,-76,-55,-53,-28,-45,0,-22,-13,-14,-4,-5,-11,-14,0,0,0,0,0,0,0,0,0,0,0,0,0,-37,0,0,0,-768,-762,-754,-750,-720,-113,-108,0,0,0,0,0,0,0,0,0,0,0,0,0,0,0,0,0,0,0,0,0,-609,524,208,5599,4618,1325,1310,29977,29978,29978,29979,29979,29980,29980,29981,29981,29982,29982,29983,29984,29985,29985,29985,29985,29986,29987]} 1. Nf3 {[%emt 0:00:02]} d5 {[%emt 0:00:02]} 2. g3 {[%emt 0:00:02]} Nd7 {[%emt 0:00:23]} 3. Bg2 {[%emt 0:00:07]} e5 {[%emt 0:00:03]} 4. d3 {[%emt 0:00:02]} c6 {[%emt 0:00:11]} 5. O-O {[%emt 0:00:02]} Ngf6 {[%emt 0:00:07]} 6. e4 {[%emt 0:00:31]} Bd6 {[%emt 0:00:16]} 7. Nbd2 {[%emt 0:00:29]} O-O {[%emt 0:00:05]} 8. c3 {[%emt 0:00:08] 8.b3 is the modern continuation.} Re8 {[%emt 0:00:04]} 9. Qc2 {[%emt 0:00:04]} Bf8 {[%emt 0:00:14] [#]} 10. d4 $146 {[%emt 0:00:53] B10: Caro-Kann: 2 d3 and 2 c4.} ({Predecessor:} 10. Rd1 a5 11. h3 Qc7 12. d4 exd4 13. Nxd4 dxe4 14. Nxe4 Nxe4 15. Bxe4 g6 16. Bf4 Qb6 17. Bg2 Nc5 {½-½ (67) Dorfman,J (2505)-Geller,E (2615) Yerevan 1981}) 10... dxe4 {[%emt 0:00:47]} (10... exd4 {is interesting.} 11. Nxd4 c5 12. Nf5 Nb6) 11. Nxe5 {[%emt 0:00:07]} Nxe5 {[%emt 0:01:13]} 12. dxe5 {[%emt 0:00:01] The position is equal.} Rxe5 {[%emt 0:00:16]} 13. Nxe4 {[%emt 0:00:01]} Bf5 {[%emt 0:00:24]} 14. Nxf6+ {[%emt 0:00:08]} Qxf6 {[%emt 0:00:05]} 15. Qd1 {[%emt 0:02:30]} (15. Qb3 $11) 15... Rd8 {[%emt 0:00:55]} 16. Qf3 {[%emt 0:00:02]} Qe6 $36 {[%emt 0:00:13][%mdl 2048] White is under strong pressure.} 17. Bf4 {[%emt 0:02:21]} (17. Be3 $142) 17... Bg4 $17 {[%emt 0:03:16]} 18. Qxg4 {[%emt 0:00:02]} Qxg4 {[%emt 0:00:02]} 19. Bxe5 {[%emt 0:00:02]} Qe2 {[%emt 0:00:11]} 20. Bd4 {[%emt 0:00:32]} c5 {[%emt 0:01:17]} 21. Be3 {[%emt 0:00:02]} b6 {[%emt 0:00:12]} 22. b3 {[%emt 0:01:32]} (22. Rab1 $142) 22... g6 {[%emt 0:00:20]} 23. Bg5 {[%emt 0:01:44]} Rd3 {[%emt 0:00:39]} 24. Rfe1 {[%emt 0:01:13]} Qg4 {[%emt 0:00:31]} 25. Bf6 {[%emt 0:01:01]} Rd6 {[%emt 0:00:02]} (25... Rd2 $142 {...Qf5 is the strong threat.} 26. Be5 g5) 26. Be5 {[%emt 0:00:16]} Rd7 {[%emt 0:01:26]} 27. c4 {[%emt 0:00:54]} Bg7 {[%emt 0:00:33]} 28. Bd5 {[%emt 0:01:02]} Bxe5 {[%emt 0:00:52]} 29. Rxe5 {[%emt 0:00:04]} Kg7 {[%emt 0:00:27]} 30. Rae1 {[%emt 0:00:01]} Kf6 {[%emt 0:01:00]} 31. Kg2 {[%emt 0:00:40]} Qd4 {[%emt 0:00:06]} 32. R5e4 {[%emt 0:00:28]} Qd2 {[%emt 0:00:31]} 33. R1e2 {[%emt 0:00:02]} Qd1 {[%emt 0:00:08]} 34. Re1 {[%emt 0:00:40]} Qd2 {[%emt 0:00:04]} 35. R1e2 {[%emt 0:00:02]} Rxd5 {[%emt 0:00:41]} 36. cxd5 {[%emt 0:00:09]} Qxd5 $11 {[%emt 0:00:02][%mdl 4096] Endgame KQ-KRR} 37. h4 {[%emt 0:00:08]} h5 {[%emt 0:00:05]} 38. f3 {[%emt 0:00:04]} b5 {[%emt 0:00:09]} 39. Rf4+ {[%emt 0:00:05]} Kg7 {[%emt 0:00:01]} 40. Re7 {[%emt 0:00:04]} a5 {[%emt 0:00:05]} 41. Rfe4 {[%emt 0:00:07]} c4 {[%emt 0:00:08]} (41... a4 $5 {[%cal Ra4b3]} 42. R7e5 Qd6 $15) 42. bxc4 {[%emt 0:00:01]} bxc4 {[%emt 0:00:01]} 43. Rf4 $2 {[%emt 0:00:09][%mdl 8192]} (43. Re2 $11) 43... c3 $19 {[%emt 0:00:06]} 44. Rc7 {[%emt 0:00:03]} Qxa2+ {[%emt 0:00:02]} 45. Kh3 {[%emt 0:00:03]} c2 $2 {[%emt 0:00:10]} (45... a4 $19 {and Black stays clearly on top. Strongly threatening ...a3.} 46. g4 c2) 46. Rfc4 $17 {[%emt 0:00:01]} Qb3 {[%emt 0:00:13]} (46... Qb1 $17 {[%cal Rb1h1]} 47. Rxc2 Qh1+ 48. Rh2 Qxf3) 47. Kg2 $11 {[%emt 0:00:10]} Qe3 {[%emt 0:00:14]} 48. Rxc2 {[%emt 0:00:03]} g5 {[%emt 0:00:02]} 49. hxg5 {[%emt 0:00:07]} Qxg5 {[%emt 0:00:01]} 50. R7c5 {[%emt 0:00:05]} Qg6 {[%emt 0:00:03]} 51. R2c4 {[%emt 0:00:04]} Qf6 {[%emt 0:00:12]} 52. Rxh5 {[%emt 0:00:07]} Qb2+ $1 {[%emt 0:00:03]} 53. Kh3 {[%emt 0:00:01]} Qf2 {[%emt 0:00:05] Hoping for ...Qf1+.} 54. Rg4+ {[%emt 0:00:08]} Kf8 {[%emt 0:00:01]} 55. Rf4 {[%emt 0:00:06]} Qf1+ {[%emt 0:00:04]} (55... a4 $2 56. Ra5 $18) 56. Kg4 {[%emt 0:00:02]} Qe1 {[%emt 0:00:10]} 57. Rxa5 $2 {[%emt 0:00:10][%mdl 8192]} Qe6+ $4 {[%emt 0:00:04][%mdl 8192] [#]} (57... Qxa5 $19 {avoids the disaster.} 58. Rf5 Qe1) 58. Raf5 $1 $18 {[%emt 0:00:01] Black must now prevent Kh3.} Qg6+ $2 {[%emt 0:00:02] [#]} (58... Kg8 59. Kh3 Kg7) 59. Kh3 $1 {[%emt 0:00:03]} Qh6+ {[%emt 0:00:05]} 60. Kg2 {[%emt 0:00:02]} Qb6 {[%emt 0:00:03]} 61. Rxf7+ {[%emt 0:00:20] White mates.} Kg8 {[%emt 0:00:01]} 62. Rf8+ {[%emt 0:00:00]} Kg7 {[%emt 0:00:01]} 63. R4f7+ {[%emt 0:00:00]} Kg6 {[%emt 0:00:01]} 64. Rf6+ {[%emt 0:00:00]} Qxf6 {[%emt 0:00:01]} 65. Rxf6+ {[%emt 0:00:00]} Kxf6 {[%emt 0:00:00]} 66. g4 {[%emt 0:00:00][%cal Bg3g4,Bg4g5][%mdl 32]} Kg5 {[%emt 0:00:01]} 67. Kg3 Kg6 {[%emt 0:00:00]} 68. f4 Kf6 69. g5+ {[%emt 0:00:00]} Kg6 {[%emt 0:00:00] Weighted Error Value: White=0.30/Black=0.44} 1-0

[Event "Rosh Hashanah Rapid 2022"]
[Site "Ramat Gan"]
[Date "2022.09.25"]
[Round "6.10"]
[White "Ehrlich, Roy"]
[Black "Orian, Noga"]
[Result "1-0"]
[ECO "B50"]
[WhiteElo "2202"]
[BlackElo "1908"]
[Annotator "TA"]
[PlyCount "63"]
[EventDate "2022.09.25"]
[EventType "rapid"]
[EventCountry "ISR"]
[SourceTitle "playchess.com"]
[Source "ChessBase"]
[SourceQuality "1"]
[TimeControl "900+5"]

{[%evp 11,63,-11,-4,-12,0,-12,-4,3,23,19,20,24,39,7,66,54,52,41,144,82,60,69,305,134,306,164,252,0,112,0,353,251,291,288,220,212,224,165,233,235,345,347,279,195,269,280,462,463,609,580,751,748,1252,1194]} 1. e4 {[%emt 0:00:02][%cal Be2e4,Be4e5][%mdl 32]} c5 {[%emt 0:00:01]} 2. Nf3 {[%emt 0:00:01]} d6 {[%emt 0:00:01]} 3. c3 {[%emt 0:00:01]} Nf6 {[%emt 0:00:03]} 4. h3 {[%emt 0:00:01]} Nc6 {[%emt 0:00:18]} 5. Bd3 {[%emt 0:00:02]} d5 {[%emt 0:00:02]} 6. e5 {[%emt 0:00:01]} Nd7 {[%emt 0:00:06]} 7. Bb5 {[%emt 0:00:01] B50: Sicilian: 2...d6, Miscellaneous.} e6 {[%emt 0:00:10]} 8. d4 {[%emt 0:00:01]} Be7 {[%emt 0:00:08]} 9. O-O {[%emt 0:00:03] The position is equal.} O-O {[%emt 0:00:03]} 10. Re1 {[%emt 0:00:18] [#]} Qc7 $146 {[%emt 0:00:16]} ({Predecessor:} 10... Qb6 11. Bd3 cxd4 12. cxd4 f6 13. exf6 Nxf6 14. Nc3 Bd7 15. Na4 Qc7 16. Bg5 h6 {1-0 (60) Odeev,H (2397)-Demianjuk,A (2297) Moscow 2017}) 11. a3 {[%emt 0:00:05]} h6 {[%emt 0:00:43]} 12. Nbd2 {[%emt 0:00:53]} a6 {[%emt 0:00:34]} (12... cxd4 $11 13. cxd4 Qb6) 13. Bd3 $14 {[%emt 0:00:02]} b5 {[%emt 0:00:45]} 14. Nf1 {[%emt 0:00:02]} b4 {[%emt 0:00:12]} (14... f5 $14) 15. Ng3 {[%emt 0:00:06] White is more active.} (15. axb4 $142 cxb4 16. Bc2) 15... bxc3 {[%emt 0:00:38]} 16. bxc3 {[%emt 0:00:01][%cal Oc1h6] aiming for Bxh6!} Qa5 $2 {[%emt 0:01:11] [#]} (16... f6 $14) 17. Bd2 {[%emt 0:00:02]} (17. Bxh6 $1 $18 {[%mdl 512] is the precise move to win.} Qxc3 (17... f5 18. Qc1) 18. Ne2) 17... Qb6 $2 {[%emt 0:00:03]} (17... Qd8 $16) 18. Be3 {[%emt 0:00:33]} (18. Rb1 Qa5 $16) (18. Bxh6 $142 Qb2 19. Bc2 $1 Qxc3 20. Ne2) 18... Qb2 {[%emt 0:01:27] [#]} (18... f5 $142) 19. Bd2 $2 {[%emt 0:04:27]} ({Better is} 19. Bxh6 $1 $18 {[%mdl 512]} Qxc3 (19... Rd8 20. Bg5) 20. Ne2) 19... cxd4 {[%emt 0:01:26]} (19... Qb6 $1 $11) 20. cxd4 {[%emt 0:02:30]} (20. Bc2 $16) 20... Kh8 $2 {[%emt 0:01:44][%mdl 8192]} (20... Nxd4 $11 {and Black is okay.} 21. Nxd4 Qxd4 22. Bxh6 Kh8) 21. Qa4 {[%emt 0:00:27]} Qb6 {[%emt 0:01:03]} 22. Rab1 {[%emt 0:00:01]} Qc7 {[%emt 0:00:19]} 23. Rec1 {[%emt 0:00:01]} Bb7 {[%emt 0:00:12]} 24. Nh2 $36 {[%emt 0:01:02][%mdl 2048] White is on the roll.} ({Don't take} 24. Rxb7 Qxb7 25. Qxc6 (25. Rxc6 Nb6 $16) 25... Qxc6 26. Rxc6 Bxa3) 24... Rfc8 {[%emt 0:01:00]} (24... a5 $142 25. Rxb7 Qxb7) 25. Qd1 $18 {[%emt 0:00:01]} f5 {[%emt 0:00:45]} (25... a5 {keeps fighting.}) 26. Qh5 {[%emt 0:01:12][%cal Od2h6] Strongly threatening Bxh6!} Nf8 {[%emt 0:01:17]} 27. Ne2 {[%emt 0:00:46][%cal Od2h6] Bxh6! is the strong threat.} Bxa3 {[%emt 0:01:51] [#]} (27... Qd7 {might work better.} 28. Rc3 (28. Qf7 Nd8 $11) 28... Na7) 28. Rc3 $1 {[%emt 0:00:00]} Qe7 {[%emt 0:00:01] [#]} (28... Be7 29. Bxh6 g6) 29. Rxa3 $1 {[%emt 0:01:47][%mdl 512] White is clearly winning.} Qxa3 {[%emt 0:00:09]} (29... Rc7 30. Rc3) 30. Rxb7 {[%emt 0:00:02][%cal Od2h6] Threatens to win with Bxh6!} Ra7 {[%emt 0:00:46] [#]} 31. Bxh6 $1 {[%emt 0:00:16][%mdl 512]} Rxb7 {[%emt 0:00:26]} (31... Qa1+ 32. Bc1+) 32. Bc1+ {[%mdl 64] Discovered Attack.  Weighted Error Value: White=0.46/Black=0.83} 1-0